[Event "Titled Tuesday Blitz January 10 Early 2023"]
[White "Kleiman, Jake"]
[Black "Winkels, Marcel"]
[WhiteFideId "2020041"]
[BlackFideId "1003887"]
[WhiteElo "2399"]
[BlackElo "1960"]
[Result "1-0"]
[Round "06"]
[TimeControl "180+2"]
[Date "2023.01.10"]
[WhiteClock "0:00:14"]
[BlackClock "0:00:07"]

1. e4 {[%clk 0:02:42]}  c5 {[%clk 0:02:57]} 2. Nf3 {[%clk 0:02:37]}  e6 {[%clk 0:02:56]} 3. d3 {[%clk 0:02:35]}  Nc6 {[%clk 0:02:56]} 4. g3 {[%clk 0:02:34]}  g6 {[%clk 0:02:56]} 5. Bg5 {[%clk 0:02:34]}  Qb6 {[%clk 0:02:48]} 6. Nbd2 {[%clk 0:02:29]}  Bg7 {[%clk 0:02:44]} 7. Nc4 {[%clk 0:02:26]}  Qc7 {[%clk 0:02:32]} 8. Bf4 {[%clk 0:02:22]}  e5 {[%clk 0:02:31]} 9. Bd2 {[%clk 0:02:21]}  d6 {[%clk 0:02:29]} 10. a4 {[%clk 0:02:14]}  Nge7 {[%clk 0:02:27]} 11. Bg2 {[%clk 0:02:05]}  O-O {[%clk 0:02:25]} 12. O-O {[%clk 0:02:01]}  h6 {[%clk 0:02:24]} 13. Nh4 {[%clk 0:01:55]}  Be6 {[%clk 0:02:20]} 14. b3 {[%clk 0:01:42]}  g5 {[%clk 0:02:12]} 15. Nf3 {[%clk 0:01:40]}  f5 {[%clk 0:02:10]} 16. exf5 {[%clk 0:01:37]}  Nxf5 {[%clk 0:02:07]} 17. Bc3 {[%clk 0:01:31]}  Nfd4 {[%clk 0:02:06]} 18. Nxd4 {[%clk 0:01:29]}  cxd4 {[%clk 0:02:05]} 19. Bb2 {[%clk 0:01:09]}  d5 {[%clk 0:01:53]} 20. Nd2 {[%clk 0:01:01]}  Rae8 {[%clk 0:01:51]} 21. Re1 {[%clk 0:00:42]}  Nd8 {[%clk 0:01:16]} 22. h3 {[%clk 0:00:35]}  Nf7 {[%clk 0:01:15]} 23. Nf3 {[%clk 0:00:24]}  g4 {[%clk 0:01:11]} 24. Nh4 {[%clk 0:00:20]}  gxh3 {[%clk 0:00:58]} 25. Bh1 {[%clk 0:00:18]}  Ng5 {[%clk 0:00:52]} 26. Qe2 {[%clk 0:00:16]}  Qd7 {[%clk 0:00:44]} 27. Rf1 {[%clk 0:00:15]}  e4 {[%clk 0:00:36]} 28. Rae1 {[%clk 0:00:14]}  Bg4 {[%clk 0:00:31]} 29. Qd2 {[%clk 0:00:14]}  Nf3+ {[%clk 0:00:22]} 30. Bxf3 {[%clk 0:00:14]}  exf3 {[%clk 0:00:19]} 31. Kh2 {[%clk 0:00:15]}  h5 {[%clk 0:00:16]} 32. Qg5 {[%clk 0:00:14]}  Rxe1 {[%clk 0:00:10]} 33. Rxe1 {[%clk 0:00:14]}  Re8 {[%clk 0:00:10]} 34. Rxe8+ {[%clk 0:00:14]}  Qxe8 {[%clk 0:00:10]} 35. Bxd4 {[%clk 0:00:14]}  Qe2 {[%clk 0:00:07]} 36. Qxg7# {[%clk 0:00:14]} 1-0


[Site "https://www.chess.com"]

[Event "Titled Tuesday Blitz January 10 Early 2023"]
[White "Souza, Gustavo Horokoski De"]
[Black "Trigo Urquijo, Sergio"]
[WhiteFideId "2146584"]
[BlackFideId "2262436"]
[WhiteElo "1943"]
[BlackElo "2408"]
[Result "0-1"]
[Round "06"]
[TimeControl "180+2"]
[Date "2023.01.10"]
[WhiteClock "0:00:07"]
[BlackClock "0:01:19"]

1. d4 {[%clk 0:02:55]}  Nf6 {[%clk 0:02:54]} 2. c4 {[%clk 0:02:53]}  g6 {[%clk 0:02:52]} 3. Nc3 {[%clk 0:02:51]}  d5 {[%clk 0:02:53]} 4. Nf3 {[%clk 0:02:48]}  Bg7 {[%clk 0:02:52]} 5. Bf4 {[%clk 0:02:48]}  O-O {[%clk 0:02:49]} 6. e3 {[%clk 0:02:29]}  c6 {[%clk 0:02:43]} 7. Rc1 {[%clk 0:02:27]}  Be6 {[%clk 0:02:36]} 8. cxd5 {[%clk 0:02:26]}  Nxd5 {[%clk 0:02:35]} 9. Be5 {[%clk 0:02:16]}  f6 {[%clk 0:02:33]} 10. Bg3 {[%clk 0:02:16]}  Nd7 {[%clk 0:02:30]} 11. Bc4 {[%clk 0:02:10]}  N7b6 {[%clk 0:02:24]} 12. Bb3 {[%clk 0:02:04]}  Bf7 {[%clk 0:02:24]} 13. e4 {[%clk 0:01:57]}  Nxc3 {[%clk 0:02:21]} 14. Bxf7+ {[%clk 0:01:56]}  Rxf7 {[%clk 0:02:21]} 15. bxc3 {[%clk 0:01:55]}  Qd7 {[%clk 0:02:13]} 16. O-O {[%clk 0:01:51]}  Qe6 {[%clk 0:02:09]} 17. e5 {[%clk 0:01:39]}  Qxa2 {[%clk 0:02:02]} 18. exf6 {[%clk 0:01:26]}  exf6 {[%clk 0:01:56]} 19. Re1 {[%clk 0:01:25]}  Qd5 {[%clk 0:01:53]} 20. Ra1 {[%clk 0:01:15]}  Nc4 {[%clk 0:01:52]} 21. Qd3 {[%clk 0:01:12]}  b5 {[%clk 0:01:52]} 22. Nd2 {[%clk 0:01:05]}  Nxd2 {[%clk 0:01:51]} 23. Qxd2 {[%clk 0:01:06]}  a5 {[%clk 0:01:51]} 24. h3 {[%clk 0:00:53]}  a4 {[%clk 0:01:51]} 25. Re3 {[%clk 0:00:50]}  a3 {[%clk 0:01:47]} 26. Qe2 {[%clk 0:00:33]}  a2 {[%clk 0:01:44]} 27. Re8+ {[%clk 0:00:28]}  Rxe8 {[%clk 0:01:41]} 28. Qxe8+ {[%clk 0:00:26]}  Rf8 {[%clk 0:01:42]} 29. Qe2 {[%clk 0:00:26]}  Ra8 {[%clk 0:01:42]} 30. Qb2 {[%clk 0:00:24]}  f5 {[%clk 0:01:40]} 31. Bf4 {[%clk 0:00:21]}  Bf8 {[%clk 0:01:36]} 32. Bd2 {[%clk 0:00:20]}  Ra3 {[%clk 0:01:29]} 33. Bh6 {[%clk 0:00:13]}  Bd6 {[%clk 0:01:22]} 34. Bf4 {[%clk 0:00:12]}  Qb3 {[%clk 0:01:20]} 35. Bc1 {[%clk 0:00:08]}  Qxb2 {[%clk 0:01:19]} 36. Bxb2 {[%clk 0:00:09]}  Ra4 {[%clk 0:01:19]} 37. Kf1 {[%clk 0:00:08]}  b4 {[%clk 0:01:17]} 38. cxb4 {[%clk 0:00:08]}  Bxb4 {[%clk 0:01:17]} 39. Ke2 {[%clk 0:00:07]}  c5 {[%clk 0:01:17]} 40. dxc5 {[%clk 0:00:07]}  Bxc5 {[%clk 0:01:18]} 41. f3 {[%clk 0:00:08]}  Kf7 {[%clk 0:01:18]} 42. Kd3 {[%clk 0:00:08]}  Ke6 {[%clk 0:01:18]} 43. Kc2 {[%clk 0:00:08]}  Kd5 {[%clk 0:01:18]} 44. Kb3 {[%clk 0:00:09]}  Ra8 {[%clk 0:01:18]} 45. Rxa2 {[%clk 0:00:09]}  Rxa2 {[%clk 0:01:18]} 46. Kxa2 {[%clk 0:00:10]}  Kc4 {[%clk 0:01:19]} 47. Kb1 {[%clk 0:00:10]}  Kd3 {[%clk 0:01:19]} 48. Kc1 {[%clk 0:00:10]}  Ke2 {[%clk 0:01:19]} 49. g4 {[%clk 0:00:08]}  Kxf3 {[%clk 0:01:19]} 50. gxf5 {[%clk 0:00:09]}  gxf5 {[%clk 0:01:19]} 51. Bf6 {[%clk 0:00:08]}  Kg3 {[%clk 0:01:18]} 52. h4 {[%clk 0:00:07]}  f4 {[%clk 0:01:18]} 53. Kd1 {[%clk 0:00:07]}  f3 {[%clk 0:01:19]} 54. Ke1 {[%clk 0:00:07]}  Kg2 {[%clk 0:01:19]} 0-1


[Site "https://www.chess.com"]

[Event "Titled Tuesday Blitz January 10 Early 2023"]
[White "Stead, Kerry"]
[Black "Fernandez, Michael"]
[WhiteFideId "3202577"]
[BlackFideId "5803560"]
[WhiteElo "1908"]
[BlackElo "2181"]
[Result "0-1"]
[Round "06"]
[TimeControl "180+2"]
[Date "2023.01.10"]
[WhiteClock "0:00:07"]
[BlackClock "0:01:03"]

1. d4 {[%clk 0:01:51]}  d5 {[%clk 0:02:42]} 2. e4 {[%clk 0:01:51]}  dxe4 {[%clk 0:02:40]} 3. Nc3 {[%clk 0:01:51]}  Nf6 {[%clk 0:02:39]} 4. f3 {[%clk 0:01:51]}  exf3 {[%clk 0:02:36]} 5. Nxf3 {[%clk 0:01:52]}  Bf5 {[%clk 0:02:36]} 6. Bc4 {[%clk 0:01:50]}  e6 {[%clk 0:02:34]} 7. O-O {[%clk 0:01:51]}  Bg6 {[%clk 0:02:32]} 8. Bg5 {[%clk 0:01:48]}  Be7 {[%clk 0:02:29]} 9. Ne5 {[%clk 0:01:46]}  O-O {[%clk 0:02:27]} 10. Nxg6 {[%clk 0:01:45]}  hxg6 {[%clk 0:02:26]} 11. Rf3 {[%clk 0:01:41]}  Nc6 {[%clk 0:02:21]} 12. Ne2 {[%clk 0:01:39]}  Nd5 {[%clk 0:01:41]} 13. Bxe7 {[%clk 0:01:37]}  Ncxe7 {[%clk 0:01:37]} 14. c3 {[%clk 0:01:22]}  Rc8 {[%clk 0:01:21]} 15. Qd2 {[%clk 0:00:55]}  c5 {[%clk 0:01:20]} 16. dxc5 {[%clk 0:00:52]}  Rxc5 {[%clk 0:01:19]} 17. Bd3 {[%clk 0:00:51]}  Nc6 {[%clk 0:01:15]} 18. Nf4 {[%clk 0:00:27]}  Nxf4 {[%clk 0:01:14]} 19. Rxf4 {[%clk 0:00:28]}  Rd5 {[%clk 0:01:09]} 20. Rf3 {[%clk 0:00:13]}  Ne5 {[%clk 0:01:07]} 21. c4 {[%clk 0:00:10]}  Nxf3+ {[%clk 0:01:04]} 22. gxf3 {[%clk 0:00:09]}  Rxd3 {[%clk 0:01:05]} 23. Qf2 {[%clk 0:00:09]}  Qd4 {[%clk 0:01:04]} 24. b3 {[%clk 0:00:07]}  Qxa1+ {[%clk 0:01:03]} 0-1


[Site "https://www.chess.com"]

[Event "Titled Tuesday Blitz January 10 Early 2023"]
[White "Pak, Yevgeniy"]
[Black "Kaiyrbekov, Rustam"]
[WhiteFideId "14201712"]
[BlackFideId "13702424"]
[WhiteElo "2384"]
[BlackElo "2295"]
[Result "1-0"]
[Round "06"]
[TimeControl "180+2"]
[Date "2023.01.10"]
[WhiteClock "0:00:17"]
[BlackClock "0:00:02"]

1. e4 {[%clk 0:02:56]}  c5 {[%clk 0:01:16]} 2. Nc3 {[%clk 0:02:50]}  Nc6 {[%clk 0:01:12]} 3. g3 {[%clk 0:02:50]}  e6 {[%clk 0:01:13]} 4. Bg2 {[%clk 0:02:49]}  Nge7 {[%clk 0:01:11]} 5. f4 {[%clk 0:02:36]}  d5 {[%clk 0:01:06]} 6. d3 {[%clk 0:02:31]}  g6 {[%clk 0:01:02]} 7. b3 {[%clk 0:02:21]}  Bg7 {[%clk 0:01:01]} 8. Bb2 {[%clk 0:02:21]}  Qa5 {[%clk 0:00:47]} 9. Qd2 {[%clk 0:02:14]}  d4 {[%clk 0:00:39]} 10. Nb1 {[%clk 0:02:06]}  Qxd2+ {[%clk 0:00:40]} 11. Nxd2 {[%clk 0:02:06]}  b5 {[%clk 0:00:41]} 12. a4 {[%clk 0:02:03]}  Nb4 {[%clk 0:00:37]} 13. Kd1 {[%clk 0:02:01]}  Bd7 {[%clk 0:00:25]} 14. axb5 {[%clk 0:01:55]}  Bxb5 {[%clk 0:00:25]} 15. Ra5 {[%clk 0:01:50]}  a6 {[%clk 0:00:24]} 16. e5 {[%clk 0:01:47]}  Rc8 {[%clk 0:00:24]} 17. Ne4 {[%clk 0:01:45]}  Ned5 {[%clk 0:00:22]} 18. Nd6+ {[%clk 0:01:43]}  Kd7 {[%clk 0:00:22]} 19. Nxc8 {[%clk 0:01:42]}  Rxc8 {[%clk 0:00:23]} 20. Ne2 {[%clk 0:01:36]}  Ne3+ {[%clk 0:00:23]} 21. Kd2 {[%clk 0:01:35]}  Nxg2 {[%clk 0:00:23]} 22. h3 {[%clk 0:01:17]}  Ne3 {[%clk 0:00:23]} 23. Rc1 {[%clk 0:01:07]}  Bf8 {[%clk 0:00:15]} 24. g4 {[%clk 0:01:02]}  Be7 {[%clk 0:00:15]} 25. Ng3 {[%clk 0:01:00]}  Bd8 {[%clk 0:00:14]} 26. Raa1 {[%clk 0:00:57]}  a5 {[%clk 0:00:14]} 27. Ne4 {[%clk 0:00:54]}  f5 {[%clk 0:00:13]} 28. gxf5 {[%clk 0:00:51]}  gxf5 {[%clk 0:00:12]} 29. Nf2 {[%clk 0:00:40]}  Be7 {[%clk 0:00:11]} 30. Rxa5 {[%clk 0:00:36]}  Rg8 {[%clk 0:00:09]} 31. Rxb5 {[%clk 0:00:33]}  Ra8 {[%clk 0:00:06]} 32. Ra1 {[%clk 0:00:29]}  Rg8 {[%clk 0:00:04]} 33. Ra7+ {[%clk 0:00:26]}  Ke8 {[%clk 0:00:04]} 34. Rb8+ {[%clk 0:00:24]}  Bd8 {[%clk 0:00:04]} 35. Raa8 {[%clk 0:00:21]}  Ke7 {[%clk 0:00:03]} 36. Rc8 {[%clk 0:00:19]}  Ned5 {[%clk 0:00:02]} 37. Rxc5 {[%clk 0:00:17]} 1-0


[Site "https://www.chess.com"]

[Event "Titled Tuesday Blitz January 10 Early 2023"]
[White "Necula, Iulian"]
[Black "Dilmukhametov, Artur"]
[WhiteFideId "1232380"]
[BlackFideId "24179922"]
[WhiteElo "1851"]
[BlackElo "2276"]
[Result "1-0"]
[Round "06"]
[TimeControl "180+2"]
[Date "2023.01.10"]
[WhiteClock "0:00:38"]
[BlackClock "0:00:56"]

1. d4 {[%clk 0:03:00]}  Nf6 {[%clk 0:02:58]} 2. Nc3 {[%clk 0:03:01]}  g6 {[%clk 0:02:58]} 3. Bf4 {[%clk 0:03:00]}  Bg7 {[%clk 0:02:58]} 4. e4 {[%clk 0:03:00]}  d6 {[%clk 0:02:56]} 5. f3 {[%clk 0:03:00]}  O-O {[%clk 0:02:55]} 6. Qd2 {[%clk 0:03:00]}  Nbd7 {[%clk 0:02:54]} 7. O-O-O {[%clk 0:03:00]}  c5 {[%clk 0:02:48]} 8. Nge2 {[%clk 0:02:36]}  Qb6 {[%clk 0:02:43]} 9. Na4 {[%clk 0:02:20]}  Qa6 {[%clk 0:02:34]} 10. Nec3 {[%clk 0:02:18]}  Qa5 {[%clk 0:02:29]} 11. dxc5 {[%clk 0:02:03]}  Nxc5 {[%clk 0:02:25]} 12. Nxc5 {[%clk 0:02:02]}  Qxc5 {[%clk 0:02:24]} 13. Be3 {[%clk 0:01:59]}  Qc7 {[%clk 0:02:22]} 14. Kb1 {[%clk 0:01:58]}  Bd7 {[%clk 0:02:22]} 15. g4 {[%clk 0:01:53]}  a6 {[%clk 0:02:22]} 16. h4 {[%clk 0:01:53]}  b5 {[%clk 0:02:19]} 17. h5 {[%clk 0:01:49]}  b4 {[%clk 0:02:11]} 18. Nd5 {[%clk 0:01:38]}  Nxd5 {[%clk 0:02:10]} 19. exd5 {[%clk 0:01:39]}  Rfb8 {[%clk 0:02:06]} 20. Bd4 {[%clk 0:01:38]}  a5 {[%clk 0:01:58]} 21. Bxg7 {[%clk 0:01:37]}  Kxg7 {[%clk 0:01:58]} 22. Qd4+ {[%clk 0:01:37]}  Kg8 {[%clk 0:01:50]} 23. hxg6 {[%clk 0:01:37]}  fxg6 {[%clk 0:01:48]} 24. Bd3 {[%clk 0:01:31]}  e5 {[%clk 0:01:35]} 25. dxe6 {[%clk 0:01:30]}  Bxe6 {[%clk 0:01:34]} 26. Qf6 {[%clk 0:00:48]}  Bf7 {[%clk 0:01:13]} 27. Rxh7 {[%clk 0:00:42]}  Bxa2+ {[%clk 0:01:02]} 28. Kxa2 {[%clk 0:00:41]}  Qxh7 {[%clk 0:00:56]} 29. Bc4+ {[%clk 0:00:38]} 1-0


[Site "https://www.chess.com"]

[Event "Titled Tuesday Blitz January 10 Early 2023"]
[White "Harshavardhan G B"]
[Black "Andreikin, Dmitry"]
[WhiteFideId "25059009"]
[BlackFideId "4158814"]
[WhiteElo "2408"]
[BlackElo "2729"]
[Result "0-1"]
[Round "07"]
[TimeControl "180+2"]
[Date "2023.01.10"]
[WhiteClock "0:00:05"]
[BlackClock "0:00:21"]

1. d4 {[%clk 0:03:00]}  d5 {[%clk 0:02:59]} 2. c4 {[%clk 0:03:00]}  e6 {[%clk 0:03:00]} 3. Nc3 {[%clk 0:02:59]}  a6 {[%clk 0:03:00]} 4. Nf3 {[%clk 0:02:57]}  dxc4 {[%clk 0:03:00]} 5. a4 {[%clk 0:02:56]}  Nf6 {[%clk 0:02:59]} 6. e4 {[%clk 0:02:54]}  Bb4 {[%clk 0:02:59]} 7. e5 {[%clk 0:02:54]}  Nd5 {[%clk 0:02:58]} 8. Bd2 {[%clk 0:02:53]}  b5 {[%clk 0:02:56]} 9. axb5 {[%clk 0:02:52]}  Nb6 {[%clk 0:02:56]} 10. bxa6 {[%clk 0:02:49]}  Bxa6 {[%clk 0:02:56]} 11. Be2 {[%clk 0:02:46]}  O-O {[%clk 0:02:55]} 12. O-O {[%clk 0:02:46]}  Nc6 {[%clk 0:02:56]} 13. Be3 {[%clk 0:02:39]}  Ne7 {[%clk 0:02:47]} 14. Ne4 {[%clk 0:02:37]}  Nf5 {[%clk 0:02:41]} 15. Bg5 {[%clk 0:02:27]}  Qd5 {[%clk 0:02:38]} 16. Nc3 {[%clk 0:02:04]}  Bxc3 {[%clk 0:02:35]} 17. bxc3 {[%clk 0:02:03]}  Bb7 {[%clk 0:02:35]} 18. Ne1 {[%clk 0:02:02]}  Rxa1 {[%clk 0:02:26]} 19. Qxa1 {[%clk 0:02:03]}  Ra8 {[%clk 0:02:26]} 20. Qb2 {[%clk 0:01:58]}  Qa5 {[%clk 0:02:24]} 21. Bf3 {[%clk 0:01:57]}  Bd5 {[%clk 0:02:21]} 22. g4 {[%clk 0:01:43]}  h6 {[%clk 0:01:59]} 23. gxf5 {[%clk 0:01:41]}  hxg5 {[%clk 0:01:59]} 24. f6 {[%clk 0:01:33]}  Qa2 {[%clk 0:01:54]} 25. Qc1 {[%clk 0:01:31]}  gxf6 {[%clk 0:01:44]} 26. exf6 {[%clk 0:01:30]}  Kh7 {[%clk 0:01:44]} 27. Kh1 {[%clk 0:01:28]}  Rg8 {[%clk 0:01:42]} 28. Qe3 {[%clk 0:01:22]}  Qb1 {[%clk 0:01:21]} 29. Bxd5 {[%clk 0:00:56]}  Nxd5 {[%clk 0:01:22]} 30. Qh3+ {[%clk 0:00:56]}  Kg6 {[%clk 0:01:22]} 31. Nf3 {[%clk 0:00:56]}  Qe4 {[%clk 0:01:20]} 32. Re1 {[%clk 0:00:50]}  Qf5 {[%clk 0:00:43]} 33. Ne5+ {[%clk 0:00:34]}  Kxf6 {[%clk 0:00:43]} 34. Qg3 {[%clk 0:00:18]}  Nf4 {[%clk 0:00:37]} 35. Ng4+ {[%clk 0:00:17]}  Ke7 {[%clk 0:00:35]} 36. f3 {[%clk 0:00:14]}  Rb8 {[%clk 0:00:31]} 37. Nf2 {[%clk 0:00:12]}  f6 {[%clk 0:00:23]} 38. Ne4 {[%clk 0:00:11]}  Rb2 {[%clk 0:00:23]} 39. h4 {[%clk 0:00:08]}  Rg2 {[%clk 0:00:20]} 40. Qxg2 {[%clk 0:00:03]}  Nxg2 {[%clk 0:00:21]} 41. Kxg2 {[%clk 0:00:04]}  gxh4 {[%clk 0:00:22]} 42. Rh1 {[%clk 0:00:04]}  Qf4 {[%clk 0:00:22]} 43. Kf2 {[%clk 0:00:04]}  f5 {[%clk 0:00:21]} 44. Nc5 {[%clk 0:00:04]}  Qd2+ {[%clk 0:00:22]} 45. Kg1 {[%clk 0:00:04]}  Qe1+ {[%clk 0:00:20]} 46. Kg2 {[%clk 0:00:04]}  Qg3+ {[%clk 0:00:21]} 47. Kf1 {[%clk 0:00:04]}  Qxf3+ {[%clk 0:00:21]} 48. Kg1 {[%clk 0:00:05]}  h3 {[%clk 0:00:21]} 49. Rh2 {[%clk 0:00:05]}  Qg3+ {[%clk 0:00:21]} 0-1


[Site "https://www.chess.com"]

[Event "Titled Tuesday Blitz January 10 Early 2023"]
[White "Salem, A.R. Saleh"]
[Black "Harsh Suresh"]
[WhiteFideId "9301348"]
[BlackFideId "45018464"]
[WhiteElo "2677"]
[BlackElo "2298"]
[Result "1-0"]
[Round "07"]
[TimeControl "180+2"]
[Date "2023.01.10"]
[WhiteClock "0:01:02"]
[BlackClock "0:00:02"]

1. d4 {[%clk 0:03:00]}  Nf6 {[%clk 0:02:55]} 2. c4 {[%clk 0:03:00]}  e6 {[%clk 0:02:55]} 3. Nc3 {[%clk 0:03:00]}  Bb4 {[%clk 0:02:54]} 4. e3 {[%clk 0:03:01]}  O-O {[%clk 0:02:53]} 5. Bd3 {[%clk 0:03:01]}  b6 {[%clk 0:02:49]} 6. Nf3 {[%clk 0:03:01]}  Re8 {[%clk 0:02:49]} 7. e4 {[%clk 0:03:00]}  c5 {[%clk 0:02:46]} 8. e5 {[%clk 0:02:55]}  Ng4 {[%clk 0:01:58]} 9. Bxh7+ {[%clk 0:02:55]}  Kh8 {[%clk 0:01:48]} 10. Ng5 {[%clk 0:02:54]}  Nh6 {[%clk 0:01:47]} 11. Qh5 {[%clk 0:02:50]}  Qe7 {[%clk 0:01:20]} 12. a3 {[%clk 0:02:12]}  Ba5 {[%clk 0:00:57]} 13. Nxf7+ {[%clk 0:01:59]}  Qxf7 {[%clk 0:00:53]} 14. Bg6 {[%clk 0:01:59]}  Qf8 {[%clk 0:00:51]} 15. b4 {[%clk 0:01:39]}  cxb4 {[%clk 0:00:46]} 16. Ne4 {[%clk 0:01:35]}  b3+ {[%clk 0:00:40]} 17. Ke2 {[%clk 0:01:32]}  Nc6 {[%clk 0:00:30]} 18. Rd1 {[%clk 0:01:27]}  Ba6 {[%clk 0:00:29]} 19. Nd6 {[%clk 0:01:26]}  Bc3 {[%clk 0:00:23]} 20. Nf7+ {[%clk 0:01:15]}  Kg8 {[%clk 0:00:23]} 21. Nxh6+ {[%clk 0:01:09]}  gxh6 {[%clk 0:00:23]} 22. Bxh6 {[%clk 0:01:10]}  Bxc4+ {[%clk 0:00:23]} 23. Ke3 {[%clk 0:01:02]}  Qe7 {[%clk 0:00:11]} 24. Bg5 {[%clk 0:01:02]}  Qg7 {[%clk 0:00:05]} 25. Bf6 {[%clk 0:01:02]}  b2 {[%clk 0:00:04]} 26. Bxg7 {[%clk 0:01:00]}  Kxg7 {[%clk 0:00:01]} 27. Qh7+ {[%clk 0:01:01]}  Kf8 {[%clk 0:00:02]} 28. Qf7# {[%clk 0:01:02]} 1-0


[Site "https://www.chess.com"]

[Event "Titled Tuesday Blitz January 10 Early 2023"]
[White "Anton Guijarro, David"]
[Black "Galchenko, Matvey"]
[WhiteFideId "2285525"]
[BlackFideId "24175480"]
[WhiteElo "2690"]
[BlackElo "2438"]
[Result "1-0"]
[Round "07"]
[TimeControl "180+2"]
[Date "2023.01.10"]
[WhiteClock "0:00:21"]
[BlackClock "0:00:02"]

1. Nf3 {[%clk 0:03:00]}  c5 {[%clk 0:02:55]} 2. e3 {[%clk 0:02:59]}  Nf6 {[%clk 0:02:51]} 3. d4 {[%clk 0:02:59]}  g6 {[%clk 0:02:51]} 4. dxc5 {[%clk 0:02:58]}  Qa5+ {[%clk 0:02:49]} 5. Nbd2 {[%clk 0:02:58]}  Qxc5 {[%clk 0:02:48]} 6. a3 {[%clk 0:02:59]}  Qc7 {[%clk 0:02:31]} 7. b4 {[%clk 0:02:58]}  a5 {[%clk 0:02:30]} 8. Bb2 {[%clk 0:02:59]}  Bg7 {[%clk 0:02:30]} 9. Be2 {[%clk 0:02:58]}  O-O {[%clk 0:02:26]} 10. c4 {[%clk 0:02:57]}  b6 {[%clk 0:02:13]} 11. O-O {[%clk 0:02:56]}  Bb7 {[%clk 0:02:14]} 12. Nd4 {[%clk 0:02:52]}  Nc6 {[%clk 0:02:10]} 13. Nb5 {[%clk 0:02:43]}  Qb8 {[%clk 0:02:07]} 14. Qb3 {[%clk 0:02:44]}  Rd8 {[%clk 0:02:02]} 15. Rfd1 {[%clk 0:02:40]}  d6 {[%clk 0:01:59]} 16. h3 {[%clk 0:02:36]}  Qc8 {[%clk 0:01:51]} 17. Rac1 {[%clk 0:02:32]}  Qf5 {[%clk 0:01:49]} 18. Bf3 {[%clk 0:02:25]}  Rac8 {[%clk 0:01:41]} 19. Na7 {[%clk 0:02:04]}  Rc7 {[%clk 0:01:39]} 20. Nxc6 {[%clk 0:02:02]}  Bxc6 {[%clk 0:01:40]} 21. Bd4 {[%clk 0:01:59]}  Bxf3 {[%clk 0:01:05]} 22. Nxf3 {[%clk 0:02:00]}  Nd7 {[%clk 0:01:05]} 23. Bxg7 {[%clk 0:02:00]}  Kxg7 {[%clk 0:01:06]} 24. Nd4 {[%clk 0:01:59]}  Qh5 {[%clk 0:01:01]} 25. Nb5 {[%clk 0:01:54]}  Rcc8 {[%clk 0:00:59]} 26. Nc3 {[%clk 0:01:44]}  Qe5 {[%clk 0:00:49]} 27. Rd4 {[%clk 0:01:40]}  Nf6 {[%clk 0:00:42]} 28. Rcd1 {[%clk 0:01:33]}  Rc6 {[%clk 0:00:42]} 29. Rf4 {[%clk 0:01:22]}  Rdc8 {[%clk 0:00:37]} 30. g4 {[%clk 0:01:06]}  Qe6 {[%clk 0:00:29]} 31. Nd5 {[%clk 0:00:57]}  b5 {[%clk 0:00:12]} 32. cxb5 {[%clk 0:00:35]}  Rc1 {[%clk 0:00:13]} 33. Rd4 {[%clk 0:00:27]}  a4 {[%clk 0:00:14]} 34. Qd3 {[%clk 0:00:26]}  Rxd1+ {[%clk 0:00:08]} 35. Qxd1 {[%clk 0:00:27]}  Nd7 {[%clk 0:00:04]} 36. Qxa4 {[%clk 0:00:21]}  Ne5 {[%clk 0:00:04]} 37. Qd1 {[%clk 0:00:20]}  Rb8 {[%clk 0:00:02]} 38. b6 {[%clk 0:00:20]}  Qd7 {[%clk 0:00:03]} 39. a4 {[%clk 0:00:21]}  e6 {[%clk 0:00:03]} 40. Nc3 {[%clk 0:00:19]}  Rxb6 {[%clk 0:00:04]} 41. Nb5 {[%clk 0:00:20]}  d5 {[%clk 0:00:04]} 42. f4 {[%clk 0:00:20]}  Nc6 {[%clk 0:00:04]} 43. Rd2 {[%clk 0:00:19]}  Nxb4 {[%clk 0:00:05]} 44. Qa1+ {[%clk 0:00:20]}  Kg8 {[%clk 0:00:05]} 45. Qd4 {[%clk 0:00:20]}  Rxb5 {[%clk 0:00:03]} 46. axb5 {[%clk 0:00:21]}  Qxb5 {[%clk 0:00:03]} 47. Rb2 {[%clk 0:00:21]}  Qe2 {[%clk 0:00:02]} 48. Rxe2 {[%clk 0:00:21]} 1-0


[Site "https://www.chess.com"]

[Event "Titled Tuesday Blitz January 10 Early 2023"]
[White "Demchenko, Anton"]
[Black "Paravyan, David"]
[WhiteFideId "4160258"]
[BlackFideId "4194985"]
[WhiteElo "2623"]
[BlackElo "2601"]
[Result "1-0"]
[Round "07"]
[TimeControl "180+2"]
[Date "2023.01.10"]
[WhiteClock "0:00:03"]
[BlackClock "0:00:02"]

1. e4 {[%clk 0:02:57]}  e5 {[%clk 0:03:00]} 2. Nf3 {[%clk 0:02:56]}  Nf6 {[%clk 0:03:00]} 3. Nxe5 {[%clk 0:02:56]}  d6 {[%clk 0:02:59]} 4. Nf3 {[%clk 0:02:52]}  Nxe4 {[%clk 0:02:58]} 5. Nc3 {[%clk 0:02:51]}  Nxc3 {[%clk 0:02:59]} 6. dxc3 {[%clk 0:02:52]}  Be7 {[%clk 0:02:59]} 7. Bf4 {[%clk 0:02:53]}  O-O {[%clk 0:02:58]} 8. Qd2 {[%clk 0:02:54]}  Bg4 {[%clk 0:02:56]} 9. O-O-O {[%clk 0:02:54]}  Nd7 {[%clk 0:02:56]} 10. h3 {[%clk 0:02:52]}  Bxf3 {[%clk 0:02:55]} 11. gxf3 {[%clk 0:02:53]}  Ne5 {[%clk 0:02:55]} 12. Be2 {[%clk 0:02:50]}  Bh4 {[%clk 0:02:51]} 13. Be3 {[%clk 0:02:48]}  Re8 {[%clk 0:02:03]} 14. f4 {[%clk 0:02:42]}  Nc6 {[%clk 0:02:03]} 15. Rhg1 {[%clk 0:02:36]}  Ne7 {[%clk 0:01:17]} 16. Qd3 {[%clk 0:02:29]}  Qd7 {[%clk 0:00:55]} 17. Bg4 {[%clk 0:01:55]}  Qa4 {[%clk 0:00:51]} 18. Kb1 {[%clk 0:01:55]}  Rad8 {[%clk 0:00:39]} 19. Bf3 {[%clk 0:01:43]}  Bf6 {[%clk 0:00:35]} 20. h4 {[%clk 0:01:36]}  d5 {[%clk 0:00:29]} 21. h5 {[%clk 0:01:33]}  Kh8 {[%clk 0:00:15]} 22. h6 {[%clk 0:00:41]}  g6 {[%clk 0:00:14]} 23. b3 {[%clk 0:00:42]}  Qa5 {[%clk 0:00:12]} 24. Bd4 {[%clk 0:00:42]}  Ng8 {[%clk 0:00:08]} 25. Rg5 {[%clk 0:00:33]}  c5 {[%clk 0:00:07]} 26. Bxf6+ {[%clk 0:00:30]}  Nxf6 {[%clk 0:00:08]} 27. f5 {[%clk 0:00:28]}  Qc7 {[%clk 0:00:07]} 28. Rdg1 {[%clk 0:00:20]}  Qf4 {[%clk 0:00:06]} 29. fxg6 {[%clk 0:00:18]}  fxg6 {[%clk 0:00:07]} 30. Bxd5 {[%clk 0:00:06]}  b5 {[%clk 0:00:07]} 31. c4 {[%clk 0:00:06]}  bxc4 {[%clk 0:00:04]} 32. Qxc4 {[%clk 0:00:07]}  Nxd5 {[%clk 0:00:03]} 33. Rxd5 {[%clk 0:00:07]}  Qxc4 {[%clk 0:00:03]} 34. bxc4 {[%clk 0:00:07]}  Kg8 {[%clk 0:00:03]} 35. Rxc5 {[%clk 0:00:06]}  Re2 {[%clk 0:00:02]} 36. Rc7 {[%clk 0:00:06]}  Rdd2 {[%clk 0:00:01]} 37. Rg7+ {[%clk 0:00:04]}  Kf8 {[%clk 0:00:02]} 38. Rc1 {[%clk 0:00:03]} 1-0


[Site "https://www.chess.com"]